bitfinex-derivatives/quotes_BTCF0:USTF0_20250620
["timestamp","ask_amount","ask_price","bid_price","bid_amount"]
[1750400688624,0.60131018,104790.0,104780.0,2.03587237]
[1750400688814,0.60131018,104790.0,104780.0,2.03587242]
[1750400689424,0.60131018,104790.0,104780.0,2.03587244]
[1750400689623,0.52496045,104790.0,104780.0,2.03587244]
[1750400691922,0.52496045,104790.0,104780.0,2.03583244]
[1750400692321,0.52496045,104790.0,104780.0,1.53384016]
[1750400692522,0.52496045,104790.0,104780.0,1.7848363]
[1750400692723,0.52496045,104790.0,104780.0,1.76991799]
[1750400693024,0.52496045,104790.0,104780.0,1.7848363]
[1750400694316,0.52496045,104790.0,104780.0,2.03583244]
[1750400695223,0.52496045,104790.0,104780.0,1.7848363]
[1750400695823,0.52496045,104790.0,104780.0,1.0720363]
[1750400696018,0.52496045,104790.0,104780.0,1.7848363]
[1750400696521,0.52496045,104790.0,104780.0,1.76991799]
[1750400696724,0.52496045,104790.0,104780.0,1.78483631]
[1750400697728,0.52496045,104790.0,104780.0,1.42403631]
[1750400697929,0.52496045,104790.0,104780.0,1.78483631]
[1750400698333,0.52496045,104790.0,104780.0,2.02091413]
[1750400699332,0.52496045,104790.0,104780.0,2.03583246]
[1750400700734,0.52496045,104790.0,104780.0,1.32303246]
[1750400701035,0.52496045,104790.0,104780.0,2.03579246]
[1750400701831,0.27396431,104790.0,104780.0,1.67499246]
[1750400702035,0.52496045,104790.0,104780.0,2.03579246]
[1750400702233,0.27396431,104790.0,104780.0,2.03579245]
[1750400702638,0.27396431,104790.0,104780.0,1.53380017]
[1750400702931,0.27396431,104790.0,104780.0,2.03579245]
[1750400703729,0.27396431,104790.0,104780.0,2.02087413]
[1750400704538,0.2737047,104790.0,104780.0,2.02087413]
[1750400707940,0.2737047,104790.0,104780.0,1.30811413]
[1750400708128,0.2737047,104790.0,104780.0,2.02083413]
[1750400709740,0.2737047,104790.0,104780.0,1.30811413]
[1750400710037,0.2737047,104790.0,104780.0,2.02083413]
[1750400715839,0.2737047,104790.0,104780.0,1.30811413]
[1750400716140,0.2737047,104790.0,104780.0,2.02075413]
[1750400721743,0.2737047,104790.0,104780.0,2.02071413]
[1750400723743,0.2737047,104790.0,104780.0,2.03545464]
[1750400724746,0.2737047,104790.0,104780.0,2.02071413]
[1750400725240,0.2508381,104790.0,104780.0,2.02071413]
[1750400725446,0.27368891,104790.0,104780.0,2.02071413]
[1750400729248,0.62468505,104790.0,104780.0,0.75840925]
[1750400729446,0.62468505,104790.0,104780.0,1.00940539]
[1750400729647,0.62468505,104790.0,104780.0,1.72192539]
[1750400729839,0.62468505,104790.0,104780.0,1.97292153]
[1750400730441,0.52468505,104790.0,104780.0,1.97292153]
[1750400732052,0.52468505,104790.0,104780.0,1.26040153]
[1750400732252,0.52468505,104790.0,104780.0,1.97292153]
[1750400733644,0.35005886,104790.0,104780.0,1.26040153]
[1750400733846,0.35005886,104790.0,104780.0,1.98783976]
[1750400734446,0.35005886,104790.0,104780.0,1.98783977]
[1750400734447,0.52468505,104790.0,104780.0,1.98783977]
[1750400737858,0.52468505,104790.0,104780.0,1.97292153]
[1750400738057,0.52468505,104790.0,104780.0,1.98783977]
[1750400739363,0.52468505,104790.0,104780.0,1.48584749]
[1750400739552,0.52468505,104790.0,104780.0,1.98783977]
[1750400740251,0.52468505,104790.0,104780.0,1.98783979]
[1750400743762,0.27368891,104790.0,104780.0,1.98783979]
[1750400743962,0.52468505,104790.0,104780.0,1.98783979]
[1750400745968,0.52468505,104790.0,104780.0,1.27531979]
[1750400746160,0.52468505,104790.0,104780.0,1.98763979]
[1750400747368,0.52468505,104790.0,104780.0,1.48564751]
[1750400747570,0.27368891,104790.0,104780.0,1.98763979]
[1750400747773,0.08285081,104790.0,104780.0,1.98763979]
[1750400748168,0.27368891,104790.0,104780.0,1.98763979]
[1750400748566,0.08325081,104790.0,104780.0,1.98763979]
[1750400748772,0.08285081,104790.0,104780.0,1.98763979]
[1750400748972,0.08325081,104790.0,104780.0,1.98763979]
[1750400749269,0.14052841,104790.0,104780.0,1.98763979]
[1750400750371,0.14052841,104790.0,104780.0,1.98863979]
[1750400750870,0.33136651,104790.0,104780.0,1.98863979]
[1750400751866,0.33136651,104790.0,104780.0,1.98863909]
[1750400752370,0.27529135,104790.0,104780.0,1.98963909]
[1750400754470,0.11,104790.0,104780.0,1.98963909]
[1750400754672,0.11,104790.0,104780.0,1.98963916]
[1750400755471,0.3008385,104790.0,104780.0,1.98963916]
[1750400755673,0.11,104790.0,104780.0,1.98963916]
[1750400757174,0.3008385,104790.0,104780.0,1.98963916]
[1750400757965,0.11,104790.0,104780.0,1.98963916]
[1750400759373,0.3008385,104790.0,104780.0,1.98963916]
[1750400759669,0.3008385,104790.0,104780.0,1.40979916]
[1750400759874,0.3008385,104790.0,104780.0,1.98947916]
[1750400760372,0.14949734,104790.0,104780.0,1.98947916]
[1750400760573,0.20949734,104790.0,104780.0,1.98941975]
[1750400764874,0.06,104790.0,104780.0,1.98941975]
[1750400765372,0.06,104790.0,104780.0,2.60121589]
[1750400765572,0.0008,104800.0,104790.0,0.1908385]
[1750400765774,0.15353192,104800.0,104790.0,1.172189]
[1750400766272,0.15273192,104800.0,104790.0,1.172189]
[1750400766479,0.34395222,104800.0,104790.0,1.15733078]
[1750400766679,0.34355222,104800.0,104790.0,1.15733078]
[1750400766867,0.34395222,104800.0,104790.0,1.15733078]
[1750400767466,0.15313192,104800.0,104790.0,1.15733078]
[1750400768084,0.34395222,104800.0,104790.0,1.15733078]
[1750400768474,0.34395222,104800.0,104790.0,1.17224686]
[1750400769180,0.15273192,104800.0,104790.0,1.17224698]
[1750400769385,0.15313192,104800.0,104790.0,1.17224698]
[1750400769571,0.15273192,104800.0,104790.0,1.17224698]
[1750400769768,0.15313192,104800.0,104790.0,1.17224698]
[1750400770177,0.15313192,104800.0,104790.0,1.88500685]
[1750400772283,0.21032864,104800.0,104790.0,1.88500685]
[1750400776284,0.40114894,104800.0,104790.0,1.88500685]
[1750400776678,0.21032864,104800.0,104790.0,1.88500685]
[1750400776874,0.18759672,104800.0,104790.0,1.88500685]
[1750400777579,0.18759672,104800.0,104790.0,1.96045262]
[1750400777887,0.18759672,104800.0,104790.0,1.96043056]
[1750400778392,0.21034611,104800.0,104790.0,1.96043056]
[1750400779488,0.00866774,104800.0,104790.0,1.96043056]
[1750400779688,0.05866774,104800.0,104790.0,1.96043056]
[1750400780288,0.05,104800.0,104790.0,1.96043056]
[1750400780776,0.05,104800.0,104790.0,1.96045257]
[1750400783889,0.0504,104800.0,104790.0,1.96045257]
[1750400787591,0.0504,104800.0,104790.0,1.94553655]
[1750400788298,0.0504,104800.0,104790.0,1.96045147]
[1750400795793,0.0504,104800.0,104790.0,1.96045257]
[1750400796407,0.0504,104800.0,104790.0,1.24769257]
[1750400796706,0.2412203,104800.0,104790.0,1.70905643]
[1750400798609,0.2412203,104800.0,104790.0,1.70905651]
[1750400799307,0.49221644,104800.0,104790.0,0.43196108]
[1750400799502,0.49221644,104800.0,104790.0,1.26171722]
[1750400799503,0.59521644,104800.0,104790.0,1.26171722]
[1750400799703,0.59521644,104800.0,104790.0,1.24680112]
[1750400800412,0.61814452,104800.0,104790.0,0.53444112]
[1750400800610,0.61814452,104800.0,104790.0,1.24680112]
[1750400800906,0.61814452,104800.0,104790.0,1.24675619]
[1750400801511,0.61814452,104800.0,104790.0,1.22964041]
[1750400801712,0.61814452,104800.0,104790.0,1.24678349]
[1750400801914,0.61814452,104800.0,104790.0,0.97864427]
[1750400802213,0.61814452,104800.0,104790.0,1.22964041]
[1750400803013,0.36714838,104800.0,104790.0,1.22964041]
[1750400803204,0.36714838,104800.0,104790.0,1.26304041]
[1750400803604,0.21104123,104800.0,104790.0,1.26304041]
[1750400803804,0.34104123,104800.0,104790.0,1.26304041]
[1750400806016,0.39830158,104800.0,104790.0,0.55068041]
[1750400806414,0.39830158,104800.0,104790.0,1.26296041]
[1750400806604,0.39830158,104800.0,104790.0,0.55068041]
[1750400806808,0.34104123,104800.0,104790.0,1.26296041]
[1750400807018,0.34104123,104800.0,104790.0,1.01196427]
[1750400807313,0.34104123,104800.0,104790.0,1.26296041]
[1750400807514,0.3983004,104800.0,104790.0,1.26296041]
[1750400807908,0.34104123,104800.0,104790.0,1.33556041]
[1750400808112,0.39830008,104800.0,104790.0,1.33556041]
[1750400809316,0.36380008,104800.0,104790.0,1.33556041]
[1750400809717,0.30654123,104800.0,104790.0,1.33556041]
[1750400810516,0.36379841,104800.0,104790.0,1.33556041]
[1750400811017,0.36394041,104800.0,104790.0,1.33556041]
[1750400811417,0.30668323,104800.0,104790.0,1.33556041]
[1750400811617,0.36393997,104800.0,104790.0,1.33556041]
[1750400812017,0.55767937,104800.0,104790.0,1.33556041]
[1750400812210,0.52347937,104800.0,104790.0,1.33556041]
[1750400812712,0.5807357,104800.0,104790.0,1.33556041]
[1750400812912,0.32973956,104800.0,104790.0,1.33556041]
[1750400813123,0.32973956,104800.0,104790.0,1.69636041]
[1750400813324,0.5807357,104800.0,104790.0,1.69636041]
[1750400813618,0.5807357,104800.0,104790.0,1.33556041]
[1750400813820,0.32973956,104800.0,104790.0,1.69636041]
[1750400814021,0.50040929,104800.0,104790.0,1.69636041]
[1750400814223,0.58073456,104800.0,104790.0,1.69636041]
[1750400816114,0.27248265,104800.0,104790.0,1.33556041]
[1750400816421,0.46610929,104800.0,104790.0,1.71363957]
[1750400816619,0.21511315,104800.0,104790.0,1.71363957]
[1750400817126,0.23818197,104800.0,104790.0,1.71363957]
[1750400817320,0.23818197,104800.0,104790.0,1.35283957]
[1750400817622,0.29543815,104800.0,104790.0,1.35283957]
[1750400817822,0.29543815,104800.0,104790.0,1.71363957]
[1750400818122,0.54643429,104800.0,104790.0,1.71363957]
[1750400819524,0.54643429,104800.0,104790.0,1.10184343]
[1750400819730,0.54643429,104800.0,104790.0,1.35283957]
[1750400820518,0.54643429,104800.0,104790.0,1.71363957]
[1750400821120,0.54643429,104800.0,104790.0,0.64055957]
[1750400821413,0.54643429,104800.0,104790.0,1.71363957]
[1750400822520,0.54643429,104800.0,104790.0,1.35283957]
[1750400822825,0.54643429,104800.0,104790.0,1.71363957]
[1750400823325,0.29543815,104800.0,104790.0,1.71363957]
[1750400827328,0.210325,104800.0,104790.0,1.71363957]
[1750400828321,0.4011454,104800.0,104790.0,1.71363957]
[1750400830016,0.4011454,104800.0,104790.0,1.46264343]
[1750400830217,0.4011454,104800.0,104790.0,1.71363957]
[1750400831017,0.34388922,104800.0,104790.0,1.71363957]
[1750400834231,0.34388922,104800.0,104790.0,1.46264343]
[1750400834430,0.34388922,104800.0,104790.0,1.71363957]
[1750400837127,0.34388922,104800.0,104790.0,1.71386089]
[1750400840136,0.40116283,104800.0,104790.0,1.71386089]
[1750400840534,0.40116283,104800.0,104790.0,1.71345454]
[1750400840736,0.40116283,104800.0,104790.0,1.69636041]
[1750400841337,0.34388922,104800.0,104790.0,1.69636041]
[1750400842231,0.34388922,104800.0,104790.0,1.71345454]
[1750400842433,0.34388922,104800.0,104790.0,1.00117454]
[1750400842636,0.34388922,104800.0,104790.0,1.71333454]
[1750400852363,0.17911808,104800.0,104790.0,1.71333454]
[1750400852554,0.22911808,104800.0,104790.0,1.71333454]
[1750400854149,0.22911808,104800.0,104790.0,1.4623384]
[1750400854455,0.22911808,104800.0,104790.0,1.71333454]
[1750400854654,0.22911808,104800.0,104790.0,1.35253454]
[1750400855052,0.22911808,104800.0,104790.0,1.35249454]
[1750400855253,0.22911808,104800.0,104790.0,1.71329454]
[1750400855755,0.05,104800.0,104790.0,1.71329454]
[1750400856053,0.2408204,104800.0,104790.0,1.71329454]
[1750400856246,0.29809696,104800.0,104790.0,1.71329454]
[1750400859664,0.29809696,104800.0,104790.0,1.4622984]
[1750400859856,0.29809696,104800.0,104790.0,1.71329454]
[1750400860155,0.2408204,104800.0,104790.0,1.71329454]
[1750400861257,0.29809669,104800.0,104790.0,1.71329454]
[1750400862256,0.2408204,104800.0,104790.0,1.71329454]
[1750400862959,0.2408204,104800.0,104790.0,1.4622984]
[1750400863256,0.2408204,104800.0,104790.0,1.71329454]
[1750400864358,0.26379356,104800.0,104790.0,1.71329454]
[1750400864761,0.2408204,104800.0,104790.0,1.71329454]
[1750400865656,0.26379356,104800.0,104790.0,1.71329454]
[1750400872163,0.26379356,104800.0,104790.0,1.00117454]
[1750400872459,0.26379356,104800.0,104790.0,1.71317454]
[1750400873769,0.26379356,104800.0,104790.0,1.35237454]
[1750400873959,0.26379356,104800.0,104790.0,1.71317454]
[1750400875364,0.26374841,104800.0,104790.0,1.71317454]
[1750400880764,0.26374841,104800.0,104790.0,4.41600454]
[1750400885761,0.26374841,104800.0,104790.0,4.1650084]
[1750400885962,0.26374841,104800.0,104790.0,4.41600454]
[1750400885963,0.51474455,104800.0,104790.0,4.41600454]
[1750400886162,0.51474455,104800.0,104790.0,3.70400454]
[1750400886370,0.87554455,104800.0,104790.0,4.05512454]
[1750400886572,0.91134455,104800.0,104790.0,4.05512454]
[1750400888170,0.91134455,104800.0,104790.0,3.47660454]
[1750400888370,0.91134455,104800.0,104790.0,4.05512454]
[1750400889263,0.66034841,104800.0,104790.0,3.8041284]
[1750400889466,0.55054455,104800.0,104790.0,4.05512454]
[1750400889661,0.91134455,104800.0,104790.0,4.05512454]
[1750400890275,1.01134455,104800.0,104790.0,4.05512454]
[1750400891371,1.01134455,104800.0,104790.0,3.32611041]
[1750400891573,1.01134455,104800.0,104790.0,4.03803041]
[1750400891868,0.76034841,104800.0,104790.0,3.32611041]
[1750400892175,0.29954841,104800.0,104790.0,4.03803041]
[1750400892366,0.55054455,104800.0,104790.0,3.45951041]
[1750400892566,0.55054455,104800.0,104790.0,4.03803041]
[1750400892768,0.55054455,104800.0,104790.0,3.96258464]
[1750400892971,0.91134455,104800.0,104790.0,3.96258464]
[1750400893473,0.91134455,104800.0,104790.0,3.7115885]
[1750400893675,0.97554455,104800.0,104790.0,3.25066464]
[1750400893862,0.97554455,104800.0,104790.0,3.96258464]
[1750400894066,1.01084455,104800.0,104790.0,3.96258464]
[1750400894871,1.26184069,104800.0,104790.0,3.96258464]
[1750400895172,1.26184069,104800.0,104790.0,3.38406464]
[1750400895372,1.26184069,104800.0,104790.0,3.96258464]
[1750400895676,1.01084455,104800.0,104790.0,3.96258464]
[1750400896174,1.01084455,104800.0,104790.0,3.25066464]
[1750400896374,1.01084455,104800.0,104790.0,3.96250464]
[1750400896575,1.01084455,104800.0,104790.0,3.7115085]
[1750400896981,1.01084455,104800.0,104790.0,3.96250464]
[1750400897778,1.08721278,104800.0,104790.0,3.96250464]
[1750400897976,1.01084455,104800.0,104790.0,3.96250464]
[1750400898179,1.26184069,104800.0,104790.0,3.38398464]
[1750400898379,1.01084455,104800.0,104790.0,3.38398464]
[1750400898571,0.97554455,104800.0,104790.0,3.96250464]
[1750400903281,1.22654069,104800.0,104790.0,3.38398464]
[1750400903481,1.22654069,104800.0,104790.0,3.96254464]
[1750400903681,0.97554455,104800.0,104790.0,3.96254464]
[1750400905483,1.22654069,104800.0,104790.0,3.96250464]
[1750400906081,0.97554455,104800.0,104790.0,3.96250464]
[1750400906278,1.22654069,104800.0,104790.0,3.96258464]
[1750400906677,0.72454841,104800.0,104790.0,3.96258464]
[1750400906874,0.97554455,104800.0,104790.0,3.96258464]
[1750400908086,0.95261654,104800.0,104790.0,3.96258464]
[1750400908282,0.97547563,104800.0,104790.0,3.96258464]
[1750400909786,0.97547563,104800.0,104790.0,3.38402464]
[1750400910083,1.22647177,104800.0,104790.0,2.9996685]
[1750400910280,1.30284,104800.0,104790.0,2.70283]
[1750400910479,1.41044,104800.0,104790.0,2.70283]
[1750400910780,1.91259177,104800.0,104790.0,2.70283]
[1750400910971,1.91259177,104800.0,104790.0,2.69387818]
[1750400912878,1.9222757,104800.0,104790.0,2.69387818]
[1750400916489,1.99853801,104800.0,104790.0,2.69387818]
[1750400916690,2.35933801,104800.0,104790.0,2.69387818]
[1750400921193,2.2830757,104800.0,104790.0,2.69387818]
[1750400922496,2.35932719,104800.0,104790.0,2.69387818]
[1750400922893,2.3364681,104800.0,104790.0,2.69387818]
[1750400923092,2.3592955,104800.0,104790.0,2.69387818]
[1750400925594,2.2516955,104800.0,104790.0,2.69387818]
[1750400925798,2.2516955,104800.0,104790.0,2.79747818]
[1750400926202,1.6731755,104800.0,104790.0,2.79747818]
[1750400926395,2.3601355,104800.0,104790.0,2.79747818]
[1750400931015,2.3235355,104800.0,104790.0,2.79747818]
[1750400931712,2.2517355,104800.0,104790.0,2.79747818]
[1750400934125,2.17548401,104800.0,104790.0,2.79747818]
[1750400934312,2.42648015,104800.0,104790.0,2.79747818]
[1750400934516,2.42648015,104800.0,104790.0,0.93665227]
[1750400934716,2.53708015,104800.0,104790.0,0.93665227]
[1750400934917,2.63254043,104800.0,104790.0,0.93665227]
[1750400935420,2.82338843,104800.0,104790.0,0.90205227]
[1750400935719,2.965938,104800.0,104790.0,0.90205227]
[1750400939028,2.965938,104800.0,104790.0,0.81610596]
[1750400939229,2.9431106,104800.0,104790.0,0.81610596]
[1750400940626,2.9431106,104800.0,104790.0,0.85120596]
[1750400941314,2.73705032,104800.0,104790.0,0.85120596]
[1750400941516,2.84305032,104800.0,104790.0,0.85120596]
[1750400942125,2.86584898,104800.0,104790.0,0.85120596]
[1750400943026,2.67500098,104800.0,104790.0,0.85120596]
[1750400943223,2.42400484,104800.0,104790.0,0.85120596]
[1750400943428,2.39040484,104800.0,104790.0,0.91960596]
[1750400943917,2.35410484,104800.0,104790.0,0.91960596]
[1750400944320,2.31800484,104800.0,104790.0,0.91960596]
[1750400944530,2.41346512,104800.0,104790.0,0.91960596]
[1750400948536,2.17264472,104800.0,104790.0,0.91960596]
[1750400948723,2.49346512,104800.0,104790.0,0.91960596]
[1750400949028,2.49346512,104800.0,104790.0,0.83366063]
[1750400949230,2.47066646,104800.0,104790.0,0.83366063]
[1750400949829,2.7216626,104800.0,104790.0,0.83366063]
[1750400950431,1.74955689,104800.0,104790.0,0.83366063]
[1750400950619,2.32811689,104800.0,104790.0,0.83366063]
[1750400959934,2.19224864,104800.0,104790.0,0.83366063]
[1750400961241,2.44324478,104800.0,104790.0,0.83366063]
[1750400963941,2.45295716,104800.0,104790.0,0.83366063]
[1750400964841,1.73135716,104800.0,104790.0,0.83366063]
[1750400965145,2.45295716,104800.0,104790.0,0.83366063]
[1750400969248,2.48745716,104800.0,104790.0,0.83366063]
[1750400973744,2.58294581,104800.0,104790.0,0.83366063]
[1750400973949,2.50582792,104800.0,104790.0,0.83366063]
[1750400978049,2.57612792,104800.0,104790.0,0.73016063]
[1750400978246,2.71849141,104800.0,104790.0,0.73016063]
[1750400979047,2.62300276,104800.0,104790.0,0.73016063]
[1750400981853,2.62300276,104800.0,104790.0,0.69148423]
[1750400982045,2.71846962,104800.0,104790.0,0.62012363]
[1750400982445,2.64573152,104800.0,104790.0,0.50289502]
[1750400982646,2.64573152,104800.0,104790.0,0.45997752]
[1750400983456,2.62300276,104800.0,104790.0,0.45997752]
[1750400983853,2.70012065,104800.0,104790.0,0.45997752]
[1750400984053,3.19612065,104800.0,104790.0,0.45997752]
[1750400984252,3.19612065,104800.0,104790.0,0.46397752]
[1750400984752,3.19612065,104800.0,104790.0,0.40264372]
[1750400984948,3.19612065,104800.0,104790.0,0.34725332]
[1750400985149,3.19612065,104800.0,104790.0,0.21916632]
[1750400985350,0.1908594,104780.0,104770.0,0.0696]
[1750400985550,2.46096571,104780.0,104770.0,0.0696]
[1750400986057,2.30539815,104780.0,104770.0,0.0696]
[1750400987056,2.30539815,104780.0,104770.0,0.0716]
[1750400989246,2.20996957,104780.0,104770.0,0.0716]
[1750400990150,2.28626839,104780.0,104770.0,0.0716]
[1750400990857,1.56466839,104780.0,104770.0,0.0716]
[1750400991058,2.28626839,104780.0,104770.0,0.0716]
[1750400999476,2.20996957,104780.0,104770.0,0.0716]
[1750400999677,2.28624672,104780.0,104770.0,0.0716]
[1750401008679,2.30539815,104780.0,104770.0,0.0716]
[1750401011583,2.20996957,104780.0,104770.0,0.0716]
[1750401017091,2.23277477,104780.0,104770.0,0.0716]
[1750401019489,2.26717477,104780.0,104770.0,0.0716]
[1750401019690,2.33797477,104780.0,104770.0,0.0716]
[1750401021387,0.1908958,104760.0,104750.0,0.01540659]
[1750401021695,1.01909065,104760.0,104750.0,0.01540659]
[1750401021985,1.01909065,104760.0,104750.0,0.26640273]
[1750401022187,1.01909065,104760.0,104750.0,0.01540659]
[1750401022391,1.01909065,104760.0,104750.0,0.26640273]
[1750401022996,1.27008679,104760.0,104750.0,0.30430273]
[1750401023291,1.01909065,104760.0,104750.0,0.30730273]
[1750401023787,0.94269194,104760.0,104750.0,0.30730273]
[1750401024177,1.27080597,104760.0,104750.0,0.0409]
[1750401024382,0.98640468,104760.0,104750.0,0.0409]
[1750401024586,1.63088679,104760.0,104750.0,0.0409]
[1750401024789,1.45758713,104760.0,104750.0,0.0409]
[1750401025093,1.12929451,104760.0,104750.0,0.51941014]
[1750401025390,1.38029065,104760.0,104750.0,0.51941014]
[1750401025591,1.40315282,104760.0,104750.0,0.51941014]
[1750401025786,1.40315282,104760.0,104750.0,0.70733014]
[1750401025988,1.32675411,104760.0,104750.0,0.70733014]
[1750401026381,1.32775411,104760.0,104750.0,0.70433014]
[1750401026587,1.32775411,104760.0,104750.0,0.74043014]
[1750401027088,1.32775411,104760.0,104750.0,0.35859614]
[1750401027587,1.32775411,104760.0,104750.0,0.54951024]
[1750401027992,0.96695411,104760.0,104750.0,0.54951024]
[1750401031495,0.71595797,104760.0,104750.0,0.54951024]
[1750401031689,0.96695411,104760.0,104750.0,0.54951024]
[1750401033190,0.96655411,104760.0,104750.0,0.54951024]
[1750401033493,0.96695411,104760.0,104750.0,0.54951024]
[1750401035097,0.60615411,104760.0,104750.0,0.54951024]
[1750401035487,0.35515797,104760.0,104750.0,0.74043024]
[1750401035690,0.35515797,104760.0,104750.0,1.10123024]
[1750401035893,0.35515797,104760.0,104750.0,0.74043024]
[1750401036399,0.35515797,104760.0,104750.0,1.10123024]
[1750401036699,0.60615411,104760.0,104750.0,1.10123024]
[1750401037186,0.16426217,104760.0,104750.0,1.93042638]
[1750401037392,0.22153105,104760.0,104750.0,2.18042638]
[1750401037593,0.16386217,104760.0,104750.0,2.18042638]
[1750401037794,0.16426217,104760.0,104750.0,2.18042638]
[1750401038895,0.16326217,104760.0,104750.0,2.18342638]
[1750401039599,0.16326217,104760.0,104750.0,2.18642638]
[1750401040699,0.34359848,104770.0,104760.0,0.1908958]
[1750401040899,0.46359848,104770.0,104760.0,0.94678474]
[1750401042098,0.46359848,104770.0,104760.0,0.94778474]
[1750401042502,0.46359848,104770.0,104760.0,0.44579246]
[1750401042801,0.46359848,104770.0,104760.0,0.94778474]
[1750401043406,0.71459462,104770.0,104760.0,0.94878474]
[1750401044104,0.66687132,104770.0,104760.0,0.94878474]
[1750401044703,0.41587518,104770.0,104760.0,0.94878474]
[1750401045002,0.66687132,104770.0,104760.0,0.94878474]
[1750401045398,0.66727132,104770.0,104760.0,0.94878474]
[1750401048404,0.66727132,104770.0,104760.0,0.6977886]
[1750401048607,0.66727132,104770.0,104760.0,0.94878474]
[1750401048795,0.64939767,104770.0,104760.0,0.94878474]
[1750401048998,0.64939767,104770.0,104760.0,0.44679246]
[1750401049199,0.64939767,104770.0,104760.0,0.6977886]
[1750401049807,0.64939767,104770.0,104760.0,0.94878474]
[1750401051007,0.48509677,104770.0,104760.0,0.94878474]
[1750401051311,0.04321553,104770.0,104760.0,0.94878474]
[1750401051810,0.23409313,104770.0,104760.0,0.94878474]
[1750401052909,0.04321553,104770.0,104760.0,0.94878474]
[1750401053098,0.23409313,104770.0,104760.0,0.94878474]
[1750401053911,0.23409313,104770.0,104760.0,1.30958474]
[1750401055610,0.04321553,104770.0,104760.0,1.30958474]
[1750401058112,0.04281553,104770.0,104760.0,1.30958474]
[1750401058312,0.04321553,104770.0,104760.0,1.30958474]
[1750401059911,0.04321553,104770.0,104760.0,1.29410808]
[1750401060111,0.04321553,104770.0,104760.0,1.30987247]
[1750401060311,0.04321553,104770.0,104760.0,0.80788019]
[1750401060610,0.04321553,104770.0,104760.0,1.30987247]
[1750401061920,0.23409303,104770.0,104760.0,1.88791247]
[1750401062519,0.04321553,104770.0,104760.0,1.88791247]
[1750401063420,0.04321553,104770.0,104760.0,1.87214808]
[1750401063618,0.04321553,104770.0,104760.0,1.88762042]
[1750401067321,0.48508947,104770.0,104760.0,1.88762042]
[1750401067622,0.48508947,104770.0,104760.0,1.38562814]
[1750401067921,0.48508947,104770.0,104760.0,1.88762042]
[1750401068721,0.48508947,104770.0,104760.0,1.38562814]
[1750401068921,0.48508947,104770.0,104760.0,1.88762042]
[1750401069315,0.48508947,104770.0,104760.0,0.92546428]
[1750401069520,0.51948947,104770.0,104760.0,1.63650428]
[1750401069724,0.55898947,104770.0,104760.0,1.63650428]
[1750401069920,0.55898947,104770.0,104760.0,1.38550814]
[1750401070118,0.55898947,104770.0,104760.0,1.63650428]
[1750401070718,0.55898947,104770.0,104760.0,1.53120428]
[1750401070912,0.59628947,104770.0,104760.0,1.53120428]
[1750401071112,0.65357136,104770.0,104760.0,1.53120428]
[1750401071716,0.40257522,104770.0,104760.0,1.53120428]
[1750401071918,0.67634504,104770.0,104760.0,1.53120428]
[1750401072122,0.67634504,104770.0,104760.0,1.57030428]
[1750401072319,0.67634504,104770.0,104760.0,1.60520428]
[1750401072627,0.4253489,104770.0,104760.0,1.60520428]
[1750401072828,0.67634504,104770.0,104760.0,1.60520428]
[1750401073027,0.63904504,104770.0,104760.0,1.60520428]
[1750401073226,0.63904504,104770.0,104760.0,1.63920428]
[1750401073526,0.63904504,104770.0,104760.0,1.89020042]
[1750401073728,0.54226315,104770.0,104760.0,1.89020042]
[1750401078931,0.54219825,104770.0,104760.0,1.63920428]
[1750401079332,0.54219825,104770.0,104760.0,1.89020042]
[1750401085337,0.54219825,104770.0,104760.0,1.89120042]
[1750401085744,0.59948118,104770.0,104760.0,1.64020428]
[1750401085937,0.59948118,104770.0,104760.0,0.92916428]
[1750401086137,0.59948118,104770.0,104760.0,1.18016042]
[1750401086442,0.59948118,104770.0,104760.0,1.89312042]
[1750401087442,0.59948118,104770.0,104760.0,0.5566958]
[1750401087643,0.62409825,104770.0,104760.0,1.15785194]
[1750401091844,0.62409825,104770.0,104760.0,0.9068558]
[1750401092041,0.62409825,104770.0,104760.0,1.15785194]
[1750401092546,0.62409825,104770.0,104760.0,0.44689194]
[1750401092743,0.62409825,104770.0,104760.0,1.15785194]
[1750401095048,0.60138947,104770.0,104760.0,1.15785194]
[1750401095247,0.62436331,104770.0,104760.0,1.15785194]
[1750401098052,0.62436331,104770.0,104760.0,1.19875194]
[1750401099250,0.60138947,104770.0,104760.0,1.19875194]
[1750401099437,0.60138947,104770.0,104760.0,1.23815194]
[1750401100047,0.62436538,104770.0,104760.0,1.23815194]
[1750401103952,0.70073726,104770.0,104760.0,1.23815194]
[1750401104653,0.54246538,104770.0,104760.0,1.27975194]
[1750401105748,0.54246538,104770.0,104760.0,1.0287558]
[1750401105951,0.54246538,104770.0,104760.0,1.27975194]
[1750401107153,0.30837205,104770.0,104760.0,1.27975194]
[1750401107353,0.62924985,104770.0,104760.0,1.27975194]
[1750401108651,0.62924985,104770.0,104760.0,0.56879194]
[1750401108860,0.62924985,104770.0,104760.0,1.27967194]
[1750401110851,0.34385371,104770.0,104760.0,1.27967194]
[1750401111154,0.59484985,104770.0,104760.0,1.27967194]
[1750401112655,0.34385371,104770.0,104760.0,1.53066808]
[1750401112856,0.34385371,104770.0,104760.0,1.0286758]
[1750401113049,0.15297591,104770.0,104760.0,1.89146808]
[1750401113455,0.21064569,104770.0,104760.0,1.89146808]
[1750401113658,0.21024569,104770.0,104760.0,1.89146808]
[1750401113957,0.21064569,104770.0,104760.0,1.89146808]
[1750401114152,0.40112359,104770.0,104760.0,1.89146808]
[1750401114358,0.21064569,104770.0,104760.0,1.89146808]
[1750401116461,0.40152359,104770.0,104760.0,1.89146808]
[1750401117959,0.21064569,104770.0,104760.0,1.89146808]
[1750401118155,0.21024569,104770.0,104760.0,1.89146808]
[1750401118462,0.21064569,104770.0,104760.0,1.89146808]
[1750401121556,0.21024569,104770.0,104760.0,1.89146808]
[1750401121759,0.21064569,104770.0,104760.0,1.89146808]
[1750401125362,0.15337591,104770.0,104760.0,1.89146808]
[1750401131068,0.15297591,104770.0,104760.0,1.89146808]
[1750401131273,0.15337591,104770.0,104760.0,1.89146808]
[1750401131473,0.15337591,104770.0,104760.0,2.14246422]
[1750401131768,0.05726978,104780.0,104770.0,0.1908779]
[1750401131966,0.06,104780.0,104770.0,1.17827018]
[1750401132878,0.0604,104780.0,104770.0,1.17827018]
[1750401133171,0.0604,104780.0,104770.0,1.17927018]
[1750401133375,0.0604,104780.0,104770.0,0.6772779]
[1750401133562,0.0604,104780.0,104770.0,0.92827404]
[1750401134069,0.0604,104780.0,104770.0,1.17927018]
[1750401134070,0.0614,104780.0,104770.0,1.17927018]
[1750401134269,0.0614,104780.0,104770.0,0.92827404]
[1750401136471,0.0614,104780.0,104770.0,1.17927018]
[1750401137675,0.0614,104780.0,104770.0,0.81847018]
[1750401137972,0.0614,104780.0,104770.0,1.54007018]
[1750401138875,0.0614,104780.0,104770.0,1.0380779]
[1750401139076,0.0614,104780.0,104770.0,1.54007018]
[1750401140677,0.11866978,104780.0,104770.0,1.54007018]
[1750401143580,0.14156337,104780.0,104770.0,1.54007018]
[1750401153788,0.14116337,104780.0,104770.0,1.54007018]